fUST/lending_fUST_20260303
["ID","MTS","AMOUNT","RATE_DAILY","PERIOD"]
[407463773,1772502638106,-500.0,0.00011917,2]
[407463775,1772502638116,-391.4825206,0.00011917,2]
[407463777,1772502638126,-500.0,0.00011917,2]
[407463779,1772502638140,-201.41713689,0.00011917,2]
[407463783,1772502638168,-298.58286311,0.00011917,2]
[407463785,1772502638179,-500.0,0.00011917,2]
[407463787,1772502638188,-500.0,0.00011917,2]
[407463789,1772502638198,-500.0,0.00011917,2]
[407463791,1772502638208,-44.24742655,0.00011917,2]
[407464009,1772502640392,-27.11739456,0.00011798,2]
[407464529,1772502645878,-4972.88260544,0.00011798,2]
[407464531,1772502645887,-455.75257345,0.00011917,2]
[407464533,1772502645896,-500.0,0.00011917,2]
[407464535,1772502645906,-500.0,0.00011917,2]
[407464537,1772502645915,-500.0,0.00011917,2]
[407464539,1772502645925,-500.0,0.00011917,2]
[407464541,1772502645934,-500.0,0.00011917,2]
[407464543,1772502645943,-500.0,0.00011917,2]
[407464544,1772502645951,-500.0,0.00011917,2]
[407464546,1772502645960,-500.0,0.00011917,2]
[407464548,1772502645969,-500.0,0.00011917,2]
[407464550,1772502645978,-222.85656295,0.00011917,2]
[407464552,1772502645988,-500.0,0.00011917,2]
[407464554,1772502645996,-500.0,0.00011917,2]
[407464556,1772502646006,-500.0,0.00011917,2]
[407464558,1772502646015,-500.0,0.00011917,2]
[407464559,1772502646024,-500.0,0.00011917,2]
[407464561,1772502646033,-500.0,0.00011917,2]
[407464563,1772502646042,-500.0,0.00011917,2]
[407464565,1772502646051,-500.0,0.00011917,2]
[407464567,1772502646061,-500.0,0.00011917,2]
[407464569,1772502646070,-500.0,0.00011917,2]
[407464571,1772502646080,-500.0,0.00011917,2]
[407464573,1772502646089,-500.0,0.00011917,2]
[407464575,1772502646099,-500.0,0.00011917,2]
[407464577,1772502646108,-500.0,0.00011917,2]
[407464579,1772502646117,-500.0,0.00011917,2]
[407464580,1772502646127,-500.0,0.00011917,2]
[407464582,1772502646139,-500.0,0.00011917,2]
[407464584,1772502646149,-500.0,0.00011917,2]
[407464586,1772502646158,-500.0,0.00011917,2]
[407464588,1772502646168,-500.0,0.00011917,2]
[407464590,1772502646179,-500.0,0.00011917,2]
[407464592,1772502646188,-500.0,0.00011917,2]
[407464594,1772502646198,-500.0,0.00011917,2]
[407464596,1772502646209,-500.0,0.00011917,2]
[407464597,1772502646218,-500.0,0.00011917,2]
[407464599,1772502646228,-500.0,0.00011917,2]
[407464601,1772502646238,-500.0,0.00011917,2]
[407464603,1772502646247,-500.0,0.00011917,2]
[407464605,1772502646257,-500.0,0.00011917,2]
[407464607,1772502646266,-500.0,0.00011917,2]
[407464609,1772502646275,-500.0,0.00011917,2]
[407464611,1772502646284,-500.0,0.00011917,2]
[407464613,1772502646294,-500.0,0.00011917,2]
[407464615,1772502646303,-500.0,0.00011917,2]
[407464617,1772502646313,-500.0,0.00011917,2]
[407464619,1772502646322,-500.0,0.00011917,2]
[407464621,1772502646331,-500.0,0.00011917,2]
[407464622,1772502646340,-521.32150375,0.00011917,2]
[407464624,1772502646350,-500.0,0.00011917,2]
[407464626,1772502646359,-500.0,0.00011917,2]
[407464628,1772502646369,-500.0,0.00011917,2]
[407464630,1772502646379,-500.0,0.00011917,2]
[407464632,1772502646388,-500.0,0.00011917,2]
[407464634,1772502646397,-182.97095838,0.00011918,2]
[407464636,1772502646406,-4989.81466639,0.00011918,2]
[407464638,1772502646416,-3567.8045241,0.00011923,2]
[407464640,1772502646426,-25906.8622898,0.00011923,2]
[407464642,1772502646435,-3761.7808679,0.00011923,2]
[407464644,1772502646445,-152.0572872,0.00012,2]
[407464646,1772502646454,-243.46237847,0.00012368,2]
[407464647,1772502646465,-438.23228124,0.00012368,2]
[407464649,1772502646474,-366.7440605,0.00012368,2]
[407464651,1772502646484,-301.55546615,0.00012368,2]
[407464653,1772502646493,-779.07961109,0.00012368,2]
[407464655,1772502646503,-419.13606914,0.00012368,2]
[407464657,1772502646512,-344.29018363,0.00012368,2]
[407464659,1772502646522,-1216.09458044,0.00012368,2]
[407464661,1772502646532,-654.24520792,0.00012368,2]
[407464663,1772502646542,-2312.83697232,0.00012461,2]
[407464665,1772502646551,-796.21129429,0.000125,2]
[407464672,1772502647071,-10501.62486935,0.000125,2]
[407476934,1772503039863,-1437.598244,0.00011202,2]
[407476935,1772503039890,-5000.0,0.00011797,2]
[407476936,1772503039915,-182.31153921,0.00011848,2]
[407476937,1772503039940,-160.78634346,0.000119,5]
[407476938,1772503039965,-300.0,0.00011916,2]
[407476939,1772503039992,-500.0,0.00011917,2]
[407476940,1772503040028,-500.0,0.00011917,2]
[407476941,1772503040056,-500.0,0.00011917,2]
[407476942,1772503040082,-500.0,0.00011917,2]
[407476943,1772503040110,-450.0,0.00011917,2]
[407476944,1772503040139,-500.0,0.00011917,2]
[407476945,1772503040169,-500.0,0.00011917,2]
[407476946,1772503040198,-500.0,0.00011917,2]
[407476947,1772503040232,-500.0,0.00011917,2]
[407476948,1772503040264,-500.0,0.00011917,2]
[407476949,1772503040293,-500.0,0.00011917,2]
[407476950,1772503040324,-500.0,0.00011917,2]
[407476951,1772503040355,-500.0,0.00011917,2]
[407476952,1772503040382,-4172.593959,0.00012057,2]
[407476953,1772503040406,-562.67,0.00012329,2]
[407476954,1772503040433,-468.89,0.00012329,2]
[407476955,1772503040461,-390.75,0.00012329,2]
[407476956,1772503040486,-325.62,0.00012329,2]
[407476957,1772503040515,-271.35,0.00012329,2]
[407476958,1772503040542,-226.13,0.00012329,2]
[407476959,1772503040569,-188.44,0.00012329,2]
[407476960,1772503040596,-157.03,0.00012329,2]
[407476961,1772503040621,-785.18,0.00012329,2]
[407476962,1772503040647,-1974.61967244,0.00012493,2]
[407476963,1772503040673,-2230.315306,0.00012493,2]
[407476964,1772503040699,-87171.71493589,0.000125,2]
[407476965,1772503080120,-582.0,0.00012375,2]
[407476969,1772503246603,-498.84045216,0.00011447,2]
[407476970,1772503348053,698.53169819,0.0001,7]
[407476971,1772503361986,200.0,8e-05,7]
[407476972,1772503416072,-150.0,0.000128,30]
[407476973,1772503417801,-150.0,0.000128,30]
[407476974,1772503418587,-150.0,0.000128,30]
[407476975,1772503419411,-150.0,0.000128,30]
[407476976,1772503420152,-150.0,0.000128,30]
[407476977,1772503420919,-150.0,0.000128,30]
[407476978,1772503421710,-150.0,0.000128,30]
[407476979,1772503422964,-150.0,0.000128,30]
[407476980,1772503423588,-150.0,0.000128,30]
[407476981,1772503423902,-150.0,0.000128,30]
[407476982,1772503450818,-150.0,0.000128,30]
[407476983,1772503451391,-150.0,0.000128,30]
[407476984,1772503458934,-150.0,0.000128,30]
[407476985,1772503460030,-150.0,0.000128,30]
[407476986,1772503460888,-66.391988,0.000128,30]
[407476987,1772503464495,851.49,0.000158,120]
[407476989,1772503683798,220.31,8.991e-05,2]
[407476990,1772503770137,-527.47845544,0.00011108,2]
[407476991,1772503770158,-241.26527199,0.00011108,2]
[407477071,1772503832043,-5000.0,0.00010997,2]
[407477073,1772503832052,-576.0,0.00011108,2]
[407477075,1772503832061,-701.28639731,0.00011108,2]
[407477076,1772503832071,-178.66530843,0.00011361,2]
[407477077,1772503832080,-216.93565625,0.00011388,2]
[407477078,1772503832090,-3293.36048447,0.00011528,3]
[407477079,1772503832099,-300.0,0.00011562,2]
[407477080,1772503832108,-2573.0457618,0.00011563,2]
[407477081,1772503832118,-1373.80406411,0.00012,2]
[407477082,1772503832127,-566.300942,0.00012176,2]
[407477083,1772503832135,-152.0415343,0.00012388,2]
[407477084,1772503832145,-250.0,0.00012493,2]
[407477085,1772503832154,-500.0,0.00012493,2]
[407477086,1772503832163,-500.0,0.00012493,2]
[407477087,1772503832172,-250.0,0.00012493,2]
[407477088,1772503832182,-612.254702,0.00012493,2]
[407477089,1772503832191,-500.0,0.00012493,2]
[407477090,1772503832201,-500.0,0.00012493,2]
[407477091,1772503832210,-250.0,0.00012493,2]
[407477092,1772503832219,-500.0,0.00012493,2]
[407477093,1772503832229,-250.0,0.00012493,2]
[407477094,1772503832238,-500.0,0.00012493,2]
[407477095,1772503832249,-2230.315306,0.00012493,2]
[407477096,1772503832259,-250.0,0.00012493,2]
[407477097,1772503832268,-500.0,0.00012493,2]
[407477098,1772503832278,-250.0,0.00012493,2]
[407477099,1772503832286,-339.69665668,0.00012493,2]
[407477100,1772503832296,-168.3888056,0.00012493,2]
[407477101,1772503832305,-500.0,0.00012493,2]
[407477102,1772503832314,-330.92149114,0.00012493,2]
[407477103,1772503832323,-500.0,0.00012493,2]
[407477104,1772503832333,-500.0,0.00012493,2]
[407477105,1772503832342,-500.0,0.00012493,2]
[407477106,1772503832353,-500.0,0.00012493,2]
[407477107,1772503832362,-500.0,0.00012493,2]
[407477108,1772503832374,-174.61919141,0.00012493,2]
[407477109,1772503832384,-500.0,0.00012493,2]
[407477110,1772503832394,-181.08010149,0.00012493,2]
[407477111,1772503832405,-500.0,0.00012493,2]
[407477112,1772503832414,-187.78006525,0.00012493,2]
[407477113,1772503832424,-194.72792766,0.00012493,2]
[407477114,1772503832434,-201.93286099,0.00012493,2]
[407477115,1772503832444,-500.0,0.00012493,2]
[407477116,1772503832457,-500.0,0.00012493,2]
[407477117,1772503832467,-209.40437684,0.00012493,2]
[407477118,1772503832476,-500.0,0.00012493,2]
[407477119,1772503832485,-520.36789711,0.00012493,2]
[407477120,1772503832495,-217.15233878,0.00012493,2]
[407477121,1772503832505,-500.0,0.00012493,2]
[407477122,1772503832514,-225.18697532,0.00012493,2]
[407477123,1772503832524,-500.0,0.00012493,2]
[407477124,1772503832534,-233.51889341,0.00012493,2]
[407477125,1772503832543,-500.0,0.00012493,2]
[407477126,1772503832553,-242.15909246,0.00012493,2]
[407477127,1772503832563,-500.0,0.00012493,2]
[407477128,1772503832572,-251.11897888,0.00012493,2]
[407477129,1772503832582,-236.85283904,0.00012493,2]
[407477130,1772503832591,-260.4103811,0.00012493,2]
[407477131,1772503832600,-270.0455652,0.00012493,2]
[407477132,1772503832609,-250.0,0.00012493,2]
[407477133,1772503832619,-380.5315412,0.00012493,2]
[407477134,1772503832628,-250.0,0.00012493,2]
[407477135,1772503832637,-250.0,0.00012493,2]
[407477136,1772503832646,-250.0,0.00012493,2]
[407477137,1772503832655,-250.0,0.00012493,2]
[407477138,1772503832664,-250.0,0.00012493,2]
[407477139,1772503832674,-250.0,0.00012493,2]
[407477140,1772503832683,-250.0,0.00012493,2]
[407477141,1772503832693,-250.0,0.00012493,2]
[407477142,1772503832702,-250.0,0.00012493,2]
[407477143,1772503832711,-250.0,0.00012493,2]
[407477144,1772503832722,-250.0,0.00012493,2]
[407477145,1772503832731,-250.0,0.00012493,2]
[407477146,1772503832741,-1831.13017855,0.00012493,2]
[407477147,1772503832751,-250.0,0.00012493,2]
[407477148,1772503832760,-250.0,0.00012493,2]
[407477149,1772503832769,-250.0,0.00012493,2]
[407477150,1772503832778,-272.23041171,0.00012493,2]
[407477151,1772503832788,-2830.69256056,0.00012493,2]
[407477152,1772503832797,-500.0,0.00012499,2]
[407477153,1772503832807,-22034.67756372,0.000125,2]
[407477448,1772503843424,-1650.04041361,0.00012367,2]
[407477455,1772503846048,-3349.95958639,0.00012367,2]
[407477456,1772503846057,-500.0,0.00012492,2]
[407477457,1772503846065,-153.20791888,0.00012492,2]
[407477458,1772503846075,-500.0,0.00012492,2]
[407477459,1772503846084,-500.0,0.00012492,2]
[407477460,1772503846094,-500.0,0.00012492,2]
[407477461,1772503846104,-500.0,0.00012492,2]
[407477462,1772503846114,-500.0,0.00012492,2]
[407477463,1772503846124,-500.0,0.00012492,2]
[407477464,1772503846133,-500.0,0.00012492,2]
[407477465,1772503846144,-500.0,0.00012492,2]
[407477466,1772503846154,-500.0,0.00012492,2]
[407477467,1772503846163,-500.0,0.00012492,2]
[407477468,1772503846172,-500.0,0.00012492,2]
[407477469,1772503846182,-500.0,0.00012492,2]
[407477470,1772503846191,-500.0,0.00012492,2]
[407477471,1772503846202,-500.0,0.00012492,2]
[407477472,1772503846211,-500.0,0.00012492,2]
[407477473,1772503846220,-500.0,0.00012492,2]
[407477474,1772503846229,-500.0,0.00012492,2]
[407477475,1772503846238,-500.0,0.00012492,2]
[407477476,1772503846248,-376.88239086,0.00012492,2]
[407477477,1772503846257,-500.0,0.00012492,2]
[407477478,1772503846267,-500.0,0.00012492,2]
[407477479,1772503846276,-500.0,0.00012492,2]
[407477480,1772503846286,-500.0,0.00012492,2]
[407477481,1772503846295,-500.0,0.00012492,2]
[407477482,1772503846306,-500.0,0.00012492,2]
[407477483,1772503846316,-500.0,0.00012492,2]
[407477484,1772503846327,-500.0,0.00012492,2]
[407477485,1772503846338,-500.0,0.00012492,2]
[407477486,1772503846348,-500.0,0.00012492,2]
[407477487,1772503846357,-500.0,0.00012492,2]
[407477488,1772503846370,-500.0,0.00012492,2]
[407477489,1772503846380,-500.0,0.00012492,2]
[407477490,1772503846390,-500.0,0.00012492,2]
[407477491,1772503846400,-500.0,0.00012492,2]
[407477492,1772503846409,-350.0,0.00012492,2]
[407477493,1772503846420,-500.0,0.00012492,2]
[407477494,1772503846430,-500.0,0.00012492,2]
[407477495,1772503846440,-500.0,0.00012492,2]
[407477496,1772503846451,-500.0,0.00012492,2]
[407477497,1772503846465,-500.0,0.00012492,2]
[407477498,1772503846474,-500.0,0.00012492,2]
[407477499,1772503846484,-500.0,0.00012492,2]
[407477500,1772503846494,-500.0,0.00012492,2]
[407477501,1772503846506,-500.0,0.00012492,2]
[407477502,1772503846515,-500.0,0.00012492,2]
[407477503,1772503846524,-500.0,0.00012492,2]
[407477504,1772503846535,-500.0,0.00012492,2]
[407477505,1772503846544,-500.0,0.00012492,2]
[407477506,1772503846554,-500.0,0.00012492,2]
[407477507,1772503846563,-500.0,0.00012492,2]
[407477508,1772503846573,-500.0,0.00012492,2]
[407477509,1772503846582,-530.73725798,0.00012492,2]
[407477510,1772503846592,-500.0,0.00012492,2]
[407477511,1772503846601,-500.0,0.00012492,2]
[407477512,1772503846611,-500.0,0.00012492,2]
[407477513,1772503846620,-500.0,0.00012492,2]
[407477514,1772503846629,-500.0,0.00012492,2]
[407477515,1772503846639,-500.0,0.00012492,2]
[407477516,1772503846649,-500.0,0.00012492,2]
[407477517,1772503846658,-500.0,0.00012492,2]
[407477518,1772503846667,-500.0,0.00012492,2]
[407477519,1772503846677,-500.0,0.00012492,2]
[407477520,1772503846687,-500.0,0.00012492,2]
[407477521,1772503846696,-500.0,0.00012492,2]
[407477522,1772503846707,-500.0,0.00012492,2]
[407477523,1772503846717,-500.0,0.00012492,2]
[407477524,1772503846726,-500.0,0.00012492,2]
[407477525,1772503846736,-500.0,0.00012492,2]
[407477526,1772503846746,-500.0,0.00012492,2]
[407477527,1772503846756,-500.0,0.00012492,2]
[407477528,1772503846766,-404.82797553,0.00012492,2]
[407477529,1772503846776,-500.0,0.00012492,2]
[407477530,1772503846786,-500.0,0.00012492,2]
[407477531,1772503846795,-500.0,0.00012492,2]
[407477532,1772503846805,-500.0,0.00012492,2]
[407477533,1772503846814,-500.0,0.00012492,2]
[407477534,1772503846824,-250.0,0.00012493,2]
[407477535,1772503846834,-250.0,0.00012493,2]
[407477536,1772503846844,-250.0,0.00012493,2]
[407477537,1772503846853,-250.0,0.00012493,2]
[407477538,1772503846868,-250.0,0.00012493,2]
[407477539,1772503846878,-250.0,0.00012493,2]
[407477540,1772503846888,-258.44303348,0.00012493,2]
[407477541,1772503846898,-250.0,0.00012493,2]
[407477542,1772503846908,-250.0,0.00012493,2]
[407477543,1772503846918,-250.0,0.00012493,2]
[407477544,1772503846928,-628.86700694,0.00012493,2]
[407477545,1772503846938,-250.0,0.00012493,2]
[407477546,1772503846948,-250.0,0.00012493,2]
[407477547,1772503846959,-250.0,0.00012493,2]
[407477548,1772503846969,-250.0,0.00012493,2]
[407477549,1772503846979,-250.0,0.00012493,2]
[407477550,1772503846993,-272.68181128,0.00012493,2]
[407477551,1772503847003,-14421.94380073,0.000125,2]
[407477552,1772503847037,-6200.0,0.000125,2]
[407477929,1772505043837,-15.6886475,0.00011337,2]
[407477930,1772505043916,-15.6886475,0.00011337,2]
[407477931,1772505044039,-4968.622705,0.00011337,2]
[407477932,1772505044049,-15.6886475,0.0001151,2]
[407477941,1772505046375,-168.94335476,0.0001151,2]
[407477942,1772505046385,-884.64022259,0.00011922,2]
[407477943,1772505046395,-298.12010881,0.00012396,2]
[407477944,1772505046404,-300.0,0.0001249,2]
[407477945,1772505046416,-500.0,0.00012492,2]
[407477946,1772505046425,-500.0,0.00012492,2]
[407477947,1772505046436,-500.0,0.00012492,2]
[407477948,1772505046446,-500.0,0.00012492,2]
[407477949,1772505046455,-500.0,0.00012492,2]
[407477950,1772505046476,-360.09383103,0.00012492,2]
[407477951,1772505046490,-139.90616897,0.00012492,2]
[407477952,1772505046499,-454.03005217,0.00012492,2]
[407477953,1772505046511,-45.96994783,0.00012492,2]
[407477954,1772505046521,-500.0,0.00012492,2]
[407477955,1772505046531,-500.0,0.00012492,2]
[407477956,1772505046541,-500.0,0.00012492,2]
[407477957,1772505046550,-353.0737258,0.00012492,2]
[407477958,1772505046560,-500.0,0.00012492,2]
[407477959,1772505046569,-500.0,0.00012492,2]
[407477960,1772505046579,-500.0,0.00012492,2]
[407477961,1772505046589,-500.0,0.00012492,2]
[407477962,1772505046599,-500.0,0.00012492,2]
[407477963,1772505046610,-500.0,0.00012492,2]
[407477964,1772505046620,-500.0,0.00012492,2]
[407477965,1772505046630,-500.0,0.00012492,2]
[407477966,1772505046639,-436.81814024,0.00012492,2]
[407477967,1772505046650,-500.0,0.00012492,2]
[407477968,1772505046660,-500.0,0.00012492,2]
[407477969,1772505046669,-500.0,0.00012492,2]
[407477970,1772505046681,-167.75489794,0.00012492,2]
[407477971,1772505046693,-332.24510206,0.00012492,2]
[407477972,1772505046703,-350.75489794,0.00012492,2]
[407477990,1772505484646,154.22,8.991e-05,2]
[407477991,1772505984605,8993.0,0.0001001,2]
[407478148,1772506239100,-5000.0,0.0001183,2]
[407478149,1772506239109,-186.93936221,0.0001195,2]
[407478150,1772506239118,-1087.4,0.00012,2]
[407478151,1772506239127,-207.5022779,0.00012422,2]
[407478152,1772506239135,-172.27053501,0.0001245,2]
[407478153,1772506239147,-1490.15105609,0.0001245,2]
[407478154,1772506239156,-300.0,0.00012483,2]
[407478155,1772506239165,-300.0,0.00012483,2]
[407478157,1772506239174,-300.0,0.00012483,2]
[407478159,1772506239184,-300.0,0.00012484,2]
[407478160,1772506239194,-709.05145794,0.00012486,2]
[407478163,1772506239216,-1134.089456,0.00012486,2]
[407478416,1772506246654,-387.17439206,0.00012486,2]
[407478417,1772506246664,-215.94003789,0.00012492,2]
[407478418,1772506246674,-305.25321,0.00012492,2]
[407478419,1772506246683,-331.38574897,0.00012492,2]
[407478420,1772506246692,-378.72657025,0.00012492,2]
[407478421,1772506246702,-245.02776887,0.00012492,2]
[407478422,1772506700030,-150.0,0.000128,30]
[407478426,1772506844248,-3556.6626448,0.00011352,2]
[407478429,1772506948862,-255.01317158,0.00011238,2]
[407478430,1772506948885,-1443.3373552,0.00011352,2]
[407478431,1772506948908,-581.0,0.00011467,2]
[407478432,1772506956380,5000.0,0.000115,2]
[407478433,1772506978460,2720.64947322,0.000115,2]
[407478434,1772507009170,-2279.35052678,0.000115,2]
[407478436,1772507098420,-5000.0,0.0001141,2]
[407478437,1772507099955,201.44057497,0.00011468,2]
[407478438,1772507101455,1434.676,0.0001001,2]
[407478471,1772507432425,-577.0,0.00011187,2]
[407478473,1772507432435,-197.41176347,0.00011187,2]
[407478475,1772507432445,-183.1928569,0.00011187,2]
[407478477,1772507432455,-346.14073688,0.00011275,2]
[407478479,1772507432464,-1320.0,0.000115,2]
[407478480,1772507432473,-5000.0,0.00011534,2]
[407478482,1772507432482,-208.93501629,0.0001165,2]
[407478483,1772507432492,-348.51195062,0.00011868,2]
[407478484,1772507432501,-150.0,0.00011938,2]
[407478486,1772507432511,-300.0,0.00011955,2]
[407478488,1772507432520,-2046.54402087,0.00011956,2]
[407478585,1772507438793,-2059.63718059,0.00011956,2]
[407478586,1772507438802,-10001.79666735,0.00012,2]
[407478587,1772507438812,-226.0527002,0.00012229,2]
[407478588,1772507438821,-500.0,0.00012313,2]
[407478590,1772507438831,-500.0,0.00012313,2]
[407478592,1772507438841,-650.34152509,0.00012313,2]
[407478593,1772507438850,-500.0,0.00012313,2]
[407478594,1772507438860,-500.0,0.00012313,2]
[407478595,1772507438869,-500.0,0.00012313,2]
[407478596,1772507438879,-433.86977506,0.00012313,2]
[407478597,1772507438888,-500.0,0.00012313,2]
[407478598,1772507438898,-500.0,0.00012313,2]
[407478599,1772507438907,-500.0,0.00012313,2]
[407478600,1772507438917,-500.0,0.00012313,2]
[407478601,1772507438928,-500.0,0.00012313,2]
[407478602,1772507438939,-500.0,0.00012313,2]
[407478603,1772507438950,-387.68823909,0.00012313,2]
[407478604,1772507438960,-500.0,0.00012313,2]
[407478605,1772507438971,-278.00240587,0.00012313,2]
[407478606,1772507438984,-500.0,0.00012313,2]
[407478607,1772507438994,-500.0,0.00012313,2]
[407478608,1772507439005,-500.0,0.00012313,2]
[407478609,1772507439015,-500.0,0.00012313,2]
[407478610,1772507439028,-500.0,0.00012313,2]
[407478611,1772507439040,-500.0,0.00012313,2]
[407478612,1772507439050,-500.0,0.00012313,2]
[407478613,1772507439064,-500.0,0.00012313,2]
[407478614,1772507439074,-500.0,0.00012313,2]
[407478615,1772507439085,-1113.05095169,0.00012314,2]
[407478616,1772507439096,-973.7153226,0.00012315,2]
[407478617,1772507439106,-8394.4343698,0.00012315,2]
[407478618,1772507439116,-478.78,0.00012329,2]
[407478619,1772507439126,-2230.315306,0.0001247,2]
[407478620,1772507439136,-1069.978,0.0001248,2]
[407478621,1772507439145,-2234.834,0.0001248,2]
[407478622,1772507439155,-647.423,0.0001248,2]
[407478623,1772507439165,-359.85,0.00012481,2]
[407478624,1772507439174,-200.0,0.00012486,2]
[407478625,1772507439184,-169.5,0.00012486,2]
[407478626,1772507439193,-200.0,0.00012492,2]
[407478627,1772507439203,-200.0,0.00012492,2]
[407478628,1772507439212,-200.0,0.00012492,2]
[407478629,1772507439222,-200.0,0.00012492,2]
[407478630,1772507439233,-200.0,0.00012492,2]
[407478631,1772507439243,-500.0,0.00012493,2]
[407478632,1772507439252,-518.80083593,0.00012493,2]
[407478633,1772507439262,-168.3888056,0.00012493,2]
[407478634,1772507439274,-174.61919141,0.00012493,2]
[407478635,1772507439287,-181.08010149,0.00012493,2]
[407478636,1772507439297,-187.78006525,0.00012493,2]
[407478637,1772507439307,-194.72792766,0.00012493,2]
[407478638,1772507439316,-289.5851044,0.00012493,2]
[407478639,1772507439326,-151.0,0.00012493,2]
[407478640,1772507439335,-250.0,0.00012493,2]
[407478641,1772507439345,-250.0,0.00012493,2]
[407478642,1772507439354,-250.0,0.00012493,2]
[407478643,1772507439363,-250.0,0.00012493,2]
[407478644,1772507439373,-259.37027861,0.00012493,2]
[407478645,1772507439381,-508.11194003,0.00012493,2]
[407478646,1772507439391,-180.236,0.00012493,2]
[407478647,1772507439401,-252.44243232,0.00012493,2]
[407478648,1772507439412,-767.0,0.00012495,2]
[407478649,1772507439423,-339.7471013,0.00012497,2]
[407478650,1772507439434,-9000.0,0.00012499,2]
[407478651,1772507439444,-386.84397193,0.00012499,2]
[407478652,1772507439454,-54002.34645472,0.000125,2]
[407478696,1772507441066,-609.82875241,0.000125,2]
[407478894,1772507444462,-5674.9863906,0.000125,2]
[407478926,1772507446651,-1043.45699513,0.000125,2]
[407478928,1772507446662,-9622.69799364,0.000125,2]
[407478958,1772507622452,566.058932,0.00012999,60]
[407478959,1772507622476,803.531068,0.00012999,60]
[407479577,1772508643528,-1705.82866165,0.00011132,2]
[407479710,1772508646063,-3294.17133835,0.00011132,2]
[407479712,1772508646073,-1724.29763769,0.00011358,2]
[407481056,1772509110058,4553.0,0.0001001,2]
[407481057,1772509423275,-5000.0,0.00010374,2]
[407481058,1772509423295,-827.73127372,0.00010479,2]
[407481059,1772509423317,-208.7035282,0.00010532,2]
[407481060,1772509423340,-668.1739331,0.000108,2]
[407481061,1772509423365,-300.0,0.00010998,2]
[407481062,1772509423385,-300.0,0.00010999,2]
[407481063,1772509423407,-265.29869323,0.00010999,2]
[407481064,1772509423429,-500.0,0.00010999,2]
[407481065,1772509423451,-419.7780451,0.00010999,2]
[407481066,1772509423473,-1510.31452665,0.00011,2]
[407481067,1772509437962,-10000.0,0.00011,2]
[407481068,1772509439677,-10000.0,0.00011,2]
[407481070,1772509469901,-3189.72,0.00010027,2]
[407481071,1772509469925,-1210.28,0.0001089,2]
[407481072,1772509578568,-255.01317158,0.00010781,2]
[407481073,1772509578593,-2044.98682842,0.0001089,2]
[407481074,1772509597510,-1744.73317158,0.0001089,2]
[407481075,1772509787304,1538.78,0.0001001,2]
[407481104,1772509831934,-5000.0,0.00010672,2]
[407481106,1772509831944,-1200.0,0.00010779,2]
[407481108,1772509831954,-1377.09278879,0.0001078,2]
[407481110,1772509831963,-571.0,0.0001078,2]
[407481112,1772509831972,-211.55826913,0.00010835,2]
[407481114,1772509831982,-300.0,0.00010999,2]
[407481116,1772509831991,-5029.46588854,0.00011,2]
[407481266,1772509838047,-3013.65448777,0.00011,2]
[407481268,1772509838057,-2628.1699304,0.00011025,2]
[407481270,1772509838067,-200.0,0.00011132,2]
[407481272,1772509838076,-4921.9955903,0.0001123,2]